bitfinex-derivatives/quotes_ETHF0:USTF0_20250103
["timestamp","ask_amount","ask_price","bid_price","bid_amount"]
[1735889077219,0.29102,3438.7,3438.4,0.29104]
[1735889077719,0.29104,3438.5,3438.2,0.29106]
[1735889077923,0.29105,3438.4,3438.1,0.29107]
[1735889078624,2.60235968,3438.6,3438.2,0.29106]
[1735889078926,2.31131968,3438.6,3438.2,0.29106]
[1735889079125,0.29104,3438.5,3437.9,1.132]
[1735889079320,0.29105,3438.4,3438.1,0.29107]
[1735889080123,2.31131968,3438.6,3437.9,1.132]
[1735889080420,0.29105,3438.5,3438.1,0.29107]
[1735889080622,2.31131968,3438.6,3437.9,1.132]
[1735889080824,0.29105,3438.4,3438.1,0.29107]
[1735889081126,0.29104,3438.5,3438.1,0.29107]
[1735889081328,2.31131968,3438.6,3437.9,1.132]
[1735889081530,2.31131968,3438.6,3438.4,0.29104]
[1735889081829,0.29103,3438.6,3438.3,0.29105]
[1735889082626,3.2078,3438.8,3438.3,0.29105]
[1735889082627,0.29103,3438.7,3438.3,0.29105]
[1735889083224,3.2078,3438.8,3437.9,1.132]
[1735889083419,0.29104,3438.5,3437.9,1.132]
[1735889083625,0.29103,3438.7,3438.3,0.29105]
[1735889083929,0.29103,3438.6,3438.3,0.29105]
[1735889084828,0.29103,3438.7,3438.3,0.29105]
[1735889085327,0.29103,3438.6,3438.3,0.29105]
[1735889089034,2.60234968,3438.6,3438.3,0.29105]
[1735889089231,0.29104,3438.5,3438.3,0.29105]
[1735889089529,0.29104,3438.5,3438.2,0.29106]
[1735889090429,1.01617418,3438.3,3438.2,0.29106]
[1735889090630,1.01617418,3438.3,3438.0,1.01617418]
[1735889090831,1.01617418,3438.3,3438.2,0.29106]
[1735889091933,1.30723418,3438.3,3437.9,1.132]
[1735889092137,1.01617418,3438.1,3437.9,1.42308]
[1735889094533,1.01617418,3438.1,3438.0,0.29108]
[1735889100338,1.01617418,3438.1,3438.0,4.34280269]
[1735889101437,1.01617418,3438.1,3438.0,13.44263007]
[1735889102437,2.32341836,3438.1,3438.0,13.15155007]
[1735889103039,7.32341836,3438.1,3438.0,13.15155007]
[1735889103643,48.12341836,3438.1,3438.0,13.15155007]
[1735889104636,48.26918227,3438.1,3437.2,9.09982738]
[1735889104850,4.22397418,3437.3,3437.2,9.09982738]
[1735889105234,4.22397418,3437.3,3437.2,9.39097738]
[1735889106139,4.22397418,3437.3,3437.2,0.29115]
[1735889106336,5.52146487,3437.3,3437.2,0.29115]
[1735889107242,5.52146487,3437.3,3436.6,9.09982738]
[1735889107639,5.52146487,3437.3,3436.7,0.29119]
[1735889107839,5.52146487,3437.3,3436.6,9.09982738]
[1735889108238,5.52146487,3437.3,3437.0,0.29116]
[1735889108437,5.52146487,3437.3,3436.7,0.29119]
[1735889108635,5.52146487,3437.3,3437.0,0.29116]
[1735889112149,5.52146487,3437.3,3436.6,1.136]
[1735889112942,5.52146487,3437.3,3437.0,0.29116]
[1735889113647,5.81260487,3437.3,3437.0,0.29116]
[1735889113847,5.52146487,3437.3,3436.6,1.136]
[1735889114047,5.52146487,3437.3,3437.1,0.29115]
[1735889114447,5.52146487,3437.3,3436.6,1.136]
[1735889114641,5.52146487,3437.3,3437.0,0.29116]
[1735889114847,5.52146487,3437.3,3436.6,1.136]
[1735889115148,5.52146487,3437.3,3437.0,0.29116]
[1735889115949,5.52146487,3437.3,3437.2,0.00145459]
[1735889117155,2.31366487,3437.3,3437.2,0.00145459]
[1735889118348,2.60480487,3437.3,3437.2,0.00145459]
[1735889119252,5.81260487,3437.3,3437.2,0.00145459]
[1735889120654,5.52146487,3437.3,3437.2,0.00145459]
[1735889122054,5.52146487,3437.3,3437.2,0.29260459]
[1735889122247,5.52146487,3437.3,3437.2,0.00145459]
[1735889122449,5.52146487,3437.3,3437.2,0.29260459]
[1735889122953,5.52146487,3437.3,3437.2,0.00145459]
[1735889123149,5.81260487,3437.3,3437.2,0.00145459]
[1735889128258,4.51589614,3437.3,3437.2,0.00145459]
[1735889131362,5.53285228,3437.3,3437.2,0.00145459]
[1735889131661,5.53285228,3437.3,3436.3,6.84739507]
[1735889131662,10.96957228,3437.3,3436.3,6.84739507]
[1735889131863,0.29122,3436.4,3436.3,6.84739507]
[1735889132155,41.09122,3436.4,3436.3,6.84739507]
[1735889132353,42.10817614,3436.4,3436.3,6.84739507]
[1735889132556,47.10817614,3436.4,3436.3,6.84739507]
[1735889133155,0.29127,3435.8,3435.7,6.84739507]
[1735889133457,1.30822614,3435.8,3435.7,6.84739507]
[1735889133963,1.01695614,3435.8,3435.7,6.84739507]
[1735889134260,0.29126,3435.9,3435.7,7.13866507]
[1735889134462,40.8,3435.8,3435.7,7.13866507]
[1735889135166,0.72796,3436.8,3435.7,7.13866507]
[1735889135167,0.29121,3436.5,3436.3,0.29122]
[1735889135365,5.47594201,3436.6,3435.7,3.2078]
[1735889135659,5.47594201,3436.6,3436.5,0.29121]
[1735889135961,5.47594201,3436.6,3436.4,0.29121]
[1735889135962,5.76714201,3436.6,3436.4,0.29121]
[1735889136155,5.76714201,3436.6,3436.5,0.29121]
[1735889136156,5.47594201,3436.6,3436.5,0.29121]
[1735889136351,3.499,3436.6,3436.4,0.29121]
[1735889136557,3.2078,3436.6,3436.5,0.29121]
[1735889136756,3.499,3436.6,3436.4,0.29121]
[1735889137167,0.29121,3436.5,3436.0,1.133]
[1735889137460,0.29122,3436.4,3436.2,0.29123]
[1735889138665,2.3153521,3436.4,3436.0,1.133]
[1735889138860,2.3153521,3436.4,3436.2,0.29123]
[1735889138861,2.6065721,3436.4,3436.2,0.29123]
[1735889139257,0.29122,3436.3,3436.2,0.29123]
[1735889139863,0.29122,3436.3,3436.1,0.29124]
[1735889140366,0.29124,3436.1,3436.0,1.133]
[1735889140562,2.6065921,3436.1,3436.0,1.133]
[1735889141152,0.29124,3436.2,3436.0,1.42425]
[1735889141557,0.29124,3436.1,3436.0,1.42425]
[1735889141859,0.29124,3436.2,3436.0,1.42425]
[1735889142059,2.3153521,3436.4,3436.1,0.29124]
[1735889142462,0.29123,3436.3,3436.1,0.29124]
[1735889142670,2.3153521,3436.4,3436.0,1.133]
[1735889143160,2.3153521,3436.4,3436.1,0.29124]
[1735889143161,0.29123,3436.3,3436.1,0.29124]
[1735889143467,2.6065721,3436.4,3436.2,0.29123]
[1735889143664,0.29121,3436.5,3436.3,0.29122]
[1735889143859,3.2078,3436.6,3436.0,1.133]
[1735889144164,0.29122,3436.4,3436.2,0.29123]
[1735889144865,0.29121,3436.5,3436.0,1.133]
[1735889145164,0.29121,3436.5,3436.3,0.29122]
[1735889145861,3.2078,3436.6,3436.2,0.29123]
[1735889145862,0.29122,3436.4,3436.2,0.29123]
[1735889146165,0.29122,3436.3,3436.1,0.29124]
[1735889146365,0.29124,3436.2,3436.0,1.42425]
[1735889146564,3.2078,3436.6,3436.0,1.133]
[1735889146864,0.29124,3436.1,3436.0,1.42425]
[1735889147558,2.3153521,3436.4,3436.0,1.133]
[1735889147758,0.29123,3436.3,3436.1,0.29124]
[1735889147959,0.29123,3436.2,3436.1,0.29124]
[1735889148865,0.29123,3436.2,3436.0,1.133]
[1735889149160,0.29124,3436.2,3436.0,1.42425]
[1735889149464,0.29124,3436.2,3436.0,1.133]
[1735889149864,2.3153521,3436.4,3436.0,1.133]
[1735889150359,0.29124,3436.1,3436.0,1.133]
[1735889159771,0.29124,3436.1,3435.5,6.84739507]
[1735889159772,3.2078,3436.2,3435.8,1.42426]
[1735889159964,0.29125,3436.1,3435.8,1.42426]
[1735889160760,3.2078,3436.2,3435.8,1.42426]
[1735889160966,0.29125,3436.0,3435.8,1.42426]
[1735889161161,3.2078,3436.2,3435.8,1.133]
[1735889161475,0.29125,3436.0,3435.8,1.133]
[1735889161771,3.2078,3436.2,3435.8,1.42426]
[1735889161971,0.29125,3436.1,3435.8,1.42426]
[1735889162270,0.29125,3436.1,3435.9,0.29126]
[1735889162975,3.2078,3436.2,3436.0,0.29125]
[1735889163174,2.3153521,3436.4,3435.8,1.133]
[1735889163474,0.29122,3436.3,3435.8,1.42426]
[1735889163771,0.29125,3436.1,3435.8,1.133]
[1735889164475,0.29125,3436.1,3435.9,0.29126]
[1735889165273,0.29125,3436.1,3435.8,1.42426]
[1735889165968,3.2078,3436.2,3435.8,1.133]
[1735889166174,0.29121,3436.5,3436.2,0.29123]
[1735889166374,0.29123,3436.2,3435.9,0.29126]
[1735889166569,0.29124,3436.2,3435.9,0.29125]
[1735889167170,2.3153521,3436.5,3435.8,7.98039507]
[1735889167470,0.29124,3436.1,3435.8,7.98039507]
[1735889167675,0.29124,3436.1,3435.8,8.27165507]
[1735889168076,0.29124,3436.1,3435.9,0.29126]
[1735889168371,0.29124,3436.1,3435.8,8.27165507]
[1735889168673,2.3153521,3436.5,3435.8,7.98039507]
[1735889168872,3.2078,3436.2,3435.8,7.98039507]
[1735889169068,3.2078,3436.2,3435.9,4.05179376]
[1735889169069,0.29124,3436.1,3435.9,4.05179376]
[1735889169670,3.49904,3436.2,3435.9,4.34305376]
[1735889169872,0.29124,3436.1,3435.9,4.05179376]
[1735889170378,0.29125,3436.1,3435.9,4.05179376]
[1735889170878,0.29125,3436.1,3435.9,6.84739507]
[1735889171474,0.29125,3436.0,3435.9,6.84739507]
[1735889172075,40.8,3436.0,3435.9,6.84739507]
[1735889172275,41.09125,3436.0,3435.9,6.84739507]
[1735889172575,40.8,3436.0,3435.9,6.84739507]
[1735889173373,40.8,3436.0,3435.8,1.42426]
[1735889173768,0.29125,3436.1,3435.8,1.42426]
[1735889173977,3.2078,3436.2,3435.8,1.42426]
[1735889174178,41.09124,3436.1,3435.8,1.133]
[1735889174377,41.09124,3436.1,3435.8,1.42426]
[1735889174677,41.09124,3436.1,3435.8,8.27165507]
[1735889174879,0.29125,3436.0,3435.8,8.27166507]
[1735889175266,0.29125,3436.0,3435.8,7.98039507]
[1735889175471,0.29125,3436.0,3435.8,8.27166507]
[1735889175669,41.09124,3436.1,3435.9,0.29126]
[1735889175874,3.2078,3436.2,3435.9,0.29126]
[1735889176079,0.29124,3436.1,3435.9,10.90664408]
[1735889176375,0.29125,3436.0,3435.9,10.90664408]
[1735889176570,45.02528551,3436.2,3435.9,10.90664408]
[1735889176769,0.29125,3436.1,3435.9,11.19790408]
[1735889176972,0.29125,3436.0,3435.9,10.90664408]
[1735889177179,3.49904,3436.2,3436.0,0.29125]
[1735889177380,4.51652551,3436.2,3436.0,0.29125]
[1735889177577,4.22528551,3436.2,3436.1,0.29124]
[1735889177780,3.2078,3436.2,3436.1,1.30872551]
[1735889178479,2.26814201,3436.4,3436.1,5.07673452]
[1735889178679,3.40221301,3436.5,3436.3,1.30870551]
[1735889178874,0.24305502,3436.5,3436.4,0.29122]
[1735889179678,5.55376953,3437.3,3436.4,23.55110216]
[1735889179882,4.53628402,3437.3,3437.2,1.01748551]
[1735889180082,4.53628402,3437.3,3437.2,2.44163551]
[1735889181284,1.30859551,3437.7,3437.2,14.62458198]
[1735889181968,1.30859551,3437.7,3437.3,0.29114]
[1735889182170,1.30859551,3437.7,3437.4,1.01748551]
[1735889182383,0.29111,3437.7,3437.4,6.86028372]
[1735889183077,3.49892,3437.6,3437.4,6.86028372]
[1735889183478,3.2078,3437.6,3437.4,6.86028372]
[1735889183673,0.29112,3437.5,3437.4,6.86028372]
[1735889184284,41.09112,3437.5,3437.4,6.86028372]
[1735889185186,40.8,3437.5,3437.4,6.86028372]
[1735889185580,40.8,3437.5,3437.3,4.85978206]
[1735889185788,3.49891,3437.6,3437.3,4.85978206]
[1735889185988,3.2078,3437.6,3437.4,0.29113]
[1735889186179,44.0078,3437.6,3437.4,0.29113]
[1735889186987,44.0078,3437.6,3437.4,4.85977206]
[1735889187590,44.29892,3437.6,3437.4,4.85977206]
[1735889188088,44.29892,3437.6,3437.4,4.56864206]
[1735889188291,44.29892,3437.6,3437.3,4.85978206]
[1735889189092,44.0078,3437.6,3437.3,4.85978206]
[1735889189290,0.29112,3437.5,3437.3,4.85978206]
[1735889189487,2.31266263,3437.4,3437.2,4.56864206]
[1735889189685,0.29114,3437.3,3437.2,4.56864206]
[1735889191092,0.29115,3437.2,3437.0,0.29116]
[1735889192292,0.29114,3437.3,3437.1,0.29116]
[1735889192987,0.29115,3437.2,3437.0,0.29116]
[1735889193292,0.29115,3437.2,3437.1,0.29116]
[1735889193893,2.31266263,3437.4,3437.1,0.29116]
[1735889194095,0.29115,3437.3,3437.1,0.29116]
[1735889194692,0.29115,3437.2,3437.1,0.29116]
[1735889194889,0.29115,3437.2,3436.9,1.133]
[1735889195089,0.29115,3437.2,3437.0,0.29116]
[1735889195993,0.29115,3437.2,3436.9,1.133]
[1735889196191,0.29115,3437.2,3436.9,1.42417]
[1735889196388,0.29116,3437.1,3436.9,1.133]
[1735889196586,2.31266263,3437.4,3436.8,4.56864206]
[1735889196792,0.29117,3436.9,3436.8,5.70164206]
[1735889197696,0.29117,3436.9,3436.8,4.56864206]
[1735889198091,0.29117,3436.9,3436.4,3.2078]
[1735889198092,2.31266263,3437.0,3436.6,4.56864206]
[1735889198288,2.31266263,3436.7,3436.6,4.56864206]
[1735889198494,2.60385263,3436.7,3436.6,4.56864206]
[1735889199191,2.31266263,3436.7,3436.1,1.133]
[1735889199488,0.29123,3436.3,3436.1,1.133]
[1735889200189,0.29122,3436.4,3436.1,1.42424]
[1735889200595,0.29122,3436.3,3436.1,1.133]
[1735889201095,0.29122,3436.4,3436.1,1.133]
[1735889201796,40.8,3436.6,3436.1,1.133]
[1735889201992,2.31266263,3436.2,3436.0,4.56864206]
[1735889202493,3.2078,3436.4,3436.0,4.56864206]
[1735889202494,0.29124,3436.1,3436.0,4.56864206]
[1735889203196,0.29124,3436.1,3435.8,4.56864206]
[1735889203793,3.2078,3436.4,3435.8,4.56864206]
[1735889204096,0.29125,3436.1,3435.8,4.56864206]
[1735889204697,3.2078,3436.4,3435.8,4.56864206]
[1735889205091,0.29126,3436.0,3435.8,4.56864206]
[1735889206391,0.29126,3436.0,3435.7,5.99291206]
[1735889207506,3.2078,3436.4,3435.7,5.70164206]
[1735889207798,0.29125,3436.0,3435.7,5.70164206]
[1735889208196,0.29125,3436.0,3435.7,5.99291206]
[1735889209390,3.2078,3436.4,3435.7,5.70164206]
[1735889209598,0.29127,3435.8,3435.7,5.70164206]
[1735889210894,3.93585,3436.4,3435.7,5.70164206]
[1735889211095,0.29126,3435.9,3435.7,5.70164206]
[1735889211496,3.2078,3436.4,3435.7,5.70164206]
[1735889211801,0.29126,3435.9,3435.7,4.56864206]
[1735889212700,0.29126,3435.9,3435.6,4.85992206]
[1735889212897,3.2078,3436.4,3435.6,4.56864206]
[1735889213098,0.29126,3435.9,3435.7,0.29127]
[1735889213897,0.29126,3435.9,3435.6,4.56864206]
[1735889214200,0.29126,3435.9,3435.6,4.85992206]
[1735889214401,0.29126,3435.9,3435.7,0.29127]
[1735889215101,0.29126,3435.9,3435.6,4.56864206]
[1735889215301,0.29126,3435.9,3435.7,0.29127]
[1735889215500,0.29126,3435.9,3435.6,4.85992206]
[1735889216597,0.29126,3435.9,3435.6,4.56864206]
[1735889216795,0.29126,3435.9,3435.6,4.85992206]
[1735889217198,0.29126,3435.9,3435.6,0.29128]
[1735889217502,3.2078,3436.3,3435.7,0.29127]
[1735889217703,0.29127,3435.9,3435.6,0.29128]
[1735889218402,2.31266263,3435.9,3435.5,7.77644206]
[1735889218599,0.29127,3435.8,3435.5,8.06772206]
[1735889219104,0.29127,3435.8,3435.5,7.77644206]
[1735889219304,0.29128,3435.7,3435.5,7.77644206]
[1735889219500,0.29127,3435.8,3435.5,8.06773206]
[1735889219695,0.29126,3435.9,3435.6,0.29128]
[1735889219900,0.29126,3435.9,3435.7,0.29127]
[1735889220102,3.2078,3436.3,3435.7,0.29127]
[1735889220302,0.29123,3436.2,3435.7,0.29127]
[1735889220496,3.2078,3436.3,3435.7,0.29127]
[1735889220701,0.29126,3435.9,3435.7,0.29127]
[1735889220904,0.29126,3435.9,3435.5,5.52046263]
[1735889221099,3.2078,3436.3,3435.6,0.29128]
[1735889221307,3.2078,3436.3,3435.5,5.52046263]
[1735889221504,3.2078,3436.3,3435.6,0.29128]
[1735889221505,0.29127,3435.8,3435.6,0.29128]
[1735889221707,3.2078,3436.3,3435.5,3.2078]
[1735889221903,0.29127,3435.8,3435.5,3.49909]
[1735889222104,0.29126,3435.9,3435.6,0.29128]
[1735889222706,0.29127,3435.8,3435.5,3.2078]
[1735889223496,0.29126,3435.9,3435.6,0.29128]
[1735889223899,0.29126,3435.9,3435.7,0.29127]
[1735889224510,0.29127,3435.8,3435.5,3.49908]
[1735889224700,0.29127,3435.8,3435.6,0.29128]
[1735889226108,0.29126,3435.9,3435.6,0.29128]
[1735889226407,0.2913,3435.4,3435.3,4.56864206]
[1735889227011,41.0913,3435.4,3435.3,4.56864206]
[1735889228805,41.0913,3435.4,3435.0,0.29133]
[1735889228806,0.29131,3435.3,3435.0,0.29133]
[1735889229209,5.52046263,3435.3,3434.7,4.56864206]
[1735889229511,2.60401263,3434.8,3434.7,4.56864206]
[1735889230205,2.31266263,3434.8,3434.5,4.56864206]
[1735889230411,0.29137,3434.6,3434.5,4.56864206]
[1735889231910,0.29137,3434.6,3434.5,0.29138]
[1735889231911,40.8,3434.6,3434.5,0.29138]
[1735889232213,5.52046263,3435.6,3435.0,0.29133]
[1735889232403,2.31266263,3435.3,3434.6,1.133]
[1735889232609,3.49912,3435.2,3434.9,0.29134]
[1735889233207,3.2078,3435.2,3434.8,0.29135]
[1735889233506,3.2078,3435.2,3434.9,0.29134]
[1735889233711,3.49913,3435.2,3434.9,0.29134]
[1735889233911,0.29133,3435.1,3434.9,0.29134]
[1735889234409,0.29135,3434.9,3434.6,3.49916]
[1735889234611,3.2078,3435.2,3434.6,3.2078]
[1735889234813,0.29135,3434.8,3434.6,3.2078]
[1735889234999,0.29135,3434.8,3434.5,4.86001206]
[1735889235201,0.29135,3434.9,3434.6,0.29136]
[1735889235811,3.2078,3435.2,3434.6,0.29136]
[1735889236011,0.29134,3435.0,3434.6,0.29136]
[1735889237913,0.29134,3435.0,3434.7,0.29136]
[1735889239111,0.29134,3435.0,3434.6,0.29136]
[1735889239503,0.29136,3434.8,3434.5,4.63218]
[1735889240008,0.29136,3434.8,3434.5,4.3408]
[1735889240510,0.29136,3434.8,3434.5,4.63217]
[1735889240711,0.29135,3434.9,3434.5,3.49917]
[1735889240910,0.29134,3435.0,3434.6,0.29137]
[1735889241110,40.8,3435.1,3434.6,0.29137]
[1735889241311,0.29134,3434.9,3434.6,0.29137]
[1735889241813,40.8,3435.1,3434.5,3.2078]
[1735889242013,41.09133,3435.1,3434.7,0.29135]
[1735889242217,41.09133,3435.1,3434.8,0.29135]
[1735889242516,3.2078,3435.2,3435.0,0.29133]
[1735889243406,3.49912,3435.2,3435.0,0.29133]
[1735889243612,3.2078,3435.2,3435.0,0.29133]
[1735889243912,3.2078,3435.2,3434.5,3.2078]
[1735889244113,0.29133,3435.1,3434.5,3.2078]
[1735889244309,3.2078,3435.2,3434.5,3.2078]
[1735889244616,0.29131,3435.4,3435.1,0.29132]
[1735889244806,0.29131,3435.3,3435.1,0.29132]
[1735889245610,0.2913,3435.4,3434.6,6.87886774]
[1735889245814,40.8,3435.5,3435.1,0.29132]
[1735889246118,43.11266263,3435.5,3434.8,4.56620511]
[1735889246318,0.29134,3434.9,3434.8,4.56620511]
[1735889247212,0.29136,3434.8,3434.6,4.85757511]
[1735889247414,0.29136,3434.7,3434.6,4.56620511]
[1735889247725,5.52046263,3435.2,3434.6,4.85757511]
[1735889247915,0.29136,3434.8,3434.6,4.85757511]
[1735889248216,0.29135,3434.8,3434.6,0.29137]
[1735889248919,0.29135,3434.8,3434.5,4.85757511]
[1735889249120,0.29136,3434.7,3434.5,4.56620511]
[1735889249416,0.29136,3434.7,3434.5,0.29138]
[1735889249620,0.29136,3434.7,3434.4,4.56620511]
[1735889250113,5.52046263,3435.2,3434.4,4.56620511]
[1735889250315,5.52046263,3435.2,3434.6,0.29137]
[1735889250521,0.29135,3434.9,3434.6,0.29137]
[1735889251121,0.29134,3435.0,3434.7,0.29136]
[1735889251419,3.2078,3435.2,3434.4,4.56620511]
[1735889251420,0.29138,3434.5,3434.4,4.56620511]
[1735889251625,3.2078,3435.2,3434.4,4.56620511]
[1735889251920,0.29137,3434.6,3434.4,4.85758511]
[1735889252122,0.29137,3434.6,3434.4,0.29138]
[1735889252928,0.29136,3434.7,3434.5,0.29137]
[1735889253125,40.8,3435.1,3434.5,0.29137]
[1735889253330,0.29137,3434.6,3434.5,0.29137]
[1735889254016,0.29139,3434.4,3434.3,3.2078]
[1735889254222,2.31266263,3435.0,3434.3,3.2078]
[1735889254421,2.31266263,3435.0,3434.5,0.29137]
[1735889254623,0.29137,3434.6,3434.5,0.29137]
[1735889255025,0.29137,3434.6,3434.3,3.2078]
[1735889255232,0.29137,3434.6,3434.4,0.29138]
[1735889255625,2.31266263,3435.0,3434.3,3.2078]
[1735889255827,0.29137,3434.6,3434.5,0.29137]
[1735889256024,0.29137,3434.6,3434.4,0.29138]
[1735889256623,0.29138,3434.5,3434.4,0.29138]
[1735889257524,2.31266263,3435.0,3434.3,3.2078]
[1735889257827,2.31266263,3435.0,3434.3,3.49919]
[1735889257828,0.29139,3434.4,3434.3,3.49919]
[1735889258229,0.29139,3434.4,3434.3,3.2078]
[1735889258420,2.31266263,3434.7,3434.3,3.49919]
[1735889258625,0.29139,3434.4,3434.3,3.49919]
[1735889258926,0.29139,3434.4,3434.3,3.2078]
[1735889259227,3.2078,3434.8,3434.3,3.2078]
[1735889259429,2.31266263,3435.0,3434.3,3.2078]
[1735889259430,0.29136,3434.7,3434.3,3.2078]
[1735889259729,0.29134,3435.0,3434.5,0.29138]
[1735889259922,41.09133,3435.1,3434.9,0.29134]
[1735889260128,41.09133,3435.1,3434.8,0.29135]
[1735889260129,0.29134,3435.0,3434.8,0.29135]
[1735889260932,5.52046263,3435.3,3434.4,1.145]
[1735889261119,0.29133,3435.0,3434.9,0.29134]
[1735889261727,0.29134,3434.9,3434.8,0.29135]
[1735889262029,0.29134,3434.9,3434.7,0.29135]
[1735889262431,40.8,3435.2,3434.7,0.29135]
[1735889262625,0.29135,3434.9,3434.7,0.29135]
[1735889263027,0.29135,3434.8,3434.7,0.29136]
[1735889263330,40.8,3435.2,3434.6,4.56620511]
[1735889263632,0.29136,3434.8,3434.6,4.85756511]
[1735889263831,0.29135,3434.9,3434.7,0.29136]
[1735889264232,0.29135,3434.9,3434.6,4.56620511]
[1735889264430,0.29135,3434.9,3434.7,0.29136]
[1735889264631,40.8,3435.2,3434.6,4.56620511]
[1735889265033,0.29135,3434.9,3434.7,0.29135]
[1735889265240,40.8,3435.2,3434.7,0.29135]
[1735889265429,0.29135,3434.8,3434.7,0.29135]
[1735889265830,0.29134,3435.0,3434.8,0.29135]
[1735889266435,41.09132,3435.2,3435.0,0.29133]
[1735889266637,0.29133,3435.1,3435.0,0.29133]
[1735889266936,0.29132,3435.2,3434.7,4.56620511]
[1735889267325,41.09132,3435.2,3435.1,0.29133]
[1735889267539,0.29133,3435.1,3434.8,4.56620511]
[1735889267934,3.49914,3434.9,3434.8,3.80490511]
[1735889268532,44.29914,3434.9,3434.8,3.80490511]
[1735889268734,0.29139,3434.4,3434.2,0.2914]
[1735889269129,0.2914,3434.3,3434.1,8.28571767]
[1735889270244,0.29138,3434.5,3434.2,0.29139]
[1735889271037,0.29138,3434.5,3434.2,0.2914]
[1735889271236,0.29137,3434.7,3434.4,0.29138]
[1735889271741,0.29137,3434.7,3434.2,6.84930767]
[1735889271940,0.29137,3434.7,3434.5,0.29138]
[1735889273041,44.0078,3435.0,3434.6,11.26109388]
[1735889273042,0.29134,3434.9,3434.6,11.26109388]
[1735889273246,0.29136,3434.8,3434.6,11.26109388]
[1735889273438,44.0078,3435.0,3434.6,11.26109388]
[1735889273640,0.29136,3434.7,3434.6,11.26109388]
[1735889274347,0.29137,3434.6,3434.5,10.27741022]
[1735889274546,0.29137,3434.6,3434.5,9.13241022]
[1735889275670,3.2078,3434.6,3434.5,11.28589465]
[1735889275976,3.49917,3434.6,3434.5,11.28589465]
[1735889277073,0.2914,3434.2,3434.1,6.87130969]
[1735889277371,3.2078,3434.6,3434.1,6.87130969]
[1735889277571,2.31266263,3434.5,3434.1,6.87130969]
[1735889277773,0.2914,3434.2,3434.1,6.87130969]
[1735889278971,2.31266263,3434.5,3434.1,6.87130969]
[1735889279337,0.2914,3434.2,3434.1,6.87130969]
[1735889280138,2.31266263,3434.5,3434.1,6.87130969]
[1735889280343,0.2914,3434.3,3434.1,6.87130969]
[1735889280539,2.31266263,3434.5,3434.1,6.87130969]
[1735889280734,0.2914,3434.2,3434.1,11.28475074]
[1735889281141,5.81186263,3434.2,3434.1,11.28475074]
[1735889282541,0.29142,3434.0,3433.9,6.87130969]
[1735889283950,0.29142,3434.0,3433.9,4.41266238]
[1735889284340,0.29142,3434.1,3433.9,4.41266238]
[1735889284646,0.29142,3434.0,3433.9,4.41266238]
[1735889285335,3.2078,3434.3,3433.9,6.87130969]
[1735889285541,0.29141,3434.1,3433.9,7.16272969]
[1735889286447,0.29142,3434.0,3433.9,6.87130969]
[1735889286644,3.2078,3434.3,3433.9,6.87130969]
[1735889286846,0.29141,3434.2,3433.9,0.29142]
[1735889287347,0.29141,3434.1,3433.9,0.29142]
[1735889288443,3.2078,3434.3,3433.8,6.87130969]
[1735889288742,3.4992,3434.3,3434.0,0.29141]
[1735889288937,3.4992,3434.3,3433.8,6.87130969]
[1735889289345,3.2078,3434.3,3433.8,6.87130969]
[1735889289645,0.2914,3434.2,3434.0,0.29141]
[1735889289841,3.2078,3434.3,3433.8,6.87130969]
[1735889290041,5.81181263,3434.8,3434.6,0.29136]
[1735889290247,5.81181263,3434.8,3434.7,0.29136]
[1735889290446,5.52046263,3434.8,3434.4,1.141]
[1735889290752,0.29136,3434.7,3434.6,0.29137]
[1735889291045,5.52046263,3434.8,3434.7,0.29136]
[1735889291439,3.2078,3434.8,3434.7,0.29136]
[1735889291648,43.11266263,3435.1,3434.4,8.01230969]
[1735889291850,0.29135,3434.8,3434.6,0.29137]
[1735889292048,0.29134,3435.0,3434.4,8.01230969]
[1735889292245,0.29134,3435.0,3434.7,0.29136]
[1735889292548,43.40399263,3435.1,3434.8,0.29135]
[1735889293048,40.8,3435.1,3434.7,6.87130969]
[1735889293352,40.8,3435.1,3434.8,0.29135]
[1735889293555,40.8,3435.1,3434.9,0.29134]
[1735889294253,40.8,3435.1,3435.0,0.29133]
[1735889294447,3.2078,3435.3,3435.2,0.29132]
[1735889295746,3.2078,3435.3,3435.2,4.70063506]
[1735889295947,3.2078,3435.3,3435.2,4.40931506]
[1735889296446,3.2078,3435.3,3435.2,4.70063506]
[1735889297157,3.49911,3435.3,3435.1,8.01230969]
[1735889297645,3.49911,3435.3,3435.1,6.87130969]
[1735889298551,3.49911,3435.3,3435.0,7.16263969]
[1735889300546,3.2078,3435.3,3435.2,0.29132]
[1735889300947,2.60396263,3435.5,3435.2,0.29132]
[1735889301787,2.31266263,3435.5,3435.0,6.87130969]
[1735889301966,2.60395263,3435.5,3435.2,0.29131]
[1735889302170,2.31266263,3435.5,3435.2,0.29131]
[1735889302372,2.60396263,3435.5,3435.2,0.29131]
[1735889302674,0.2913,3435.4,3435.1,0.29132]
[1735889303852,2.31266263,3435.5,3435.1,0.29132]
[1735889304152,0.2913,3435.4,3435.1,0.29132]
[1735889304372,0.2913,3435.4,3435.1,0.29133]
[1735889304584,3.2078,3435.7,3435.0,6.87130969]
[1735889304585,0.2913,3435.5,3435.2,0.29131]
[1735889305763,0.29131,3435.3,3435.0,0.29133]
[1735889306561,3.2078,3435.3,3435.0,0.29133]
[1735889306765,0.29132,3435.2,3435.0,0.29133]
[1735889307266,3.49911,3435.3,3435.0,0.29133]
[1735889308062,0.29132,3435.2,3435.0,0.29133]
[1735889308358,3.49912,3435.3,3435.0,0.29133]
[1735889308955,3.2078,3435.3,3434.9,1.141]
[1735889309153,2.31266263,3435.2,3434.8,6.87130969]
[1735889309357,2.31266263,3435.2,3434.8,8.30365969]
[1735889309358,0.29133,3435.0,3434.8,8.30365969]
[1735889309958,0.29133,3435.0,3434.8,1.141]
[1735889310159,0.29133,3435.0,3434.8,1.43235]